fUSD/lending_fUSD_20250520
["ID","MTS","AMOUNT","RATE_DAILY","PERIOD"]
[361748226,1747755032608,-151.0,0.00011993,2]
[361748228,1747755032619,-151.0,0.00011993,2]
[361748230,1747755032629,-151.0,0.00011993,2]
[361748232,1747755032639,-151.0,0.00011993,2]
[361748234,1747755032648,-151.0,0.00011993,2]
[361748236,1747755032658,-151.0,0.00011993,2]
[361748238,1747755032668,-151.0,0.00011993,2]
[361748240,1747755032678,-151.0,0.00011993,2]
[361748242,1747755032688,-151.0,0.00011993,2]
[361748245,1747755032698,-151.0,0.00011993,2]
[361748247,1747755032708,-151.0,0.00011993,2]
[361748249,1747755032718,-151.0,0.00011993,2]
[361748251,1747755032728,-500.0,0.00011999,2]
[361748253,1747755032738,-500.0,0.00011999,2]
[361748255,1747755032749,-214.67121971,0.00011999,2]
[361748257,1747755032761,-285.32878029,0.00011999,2]
[361748259,1747755032772,-500.0,0.00011999,2]
[361748262,1747755032783,-500.0,0.00011999,2]
[361748264,1747755032792,-500.0,0.00011999,2]
[361748266,1747755032802,-500.0,0.00011999,2]
[361748268,1747755032812,-500.0,0.00011999,2]
[361748270,1747755032822,-500.0,0.00011999,2]
[361748272,1747755032832,-500.0,0.00011999,2]
[361748274,1747755032842,-444.34187409,0.00011999,2]
[361748276,1747755032852,-500.0,0.00011999,2]
[361748278,1747755032864,-471.91534562,0.00011999,2]
[361748760,1747755038062,-28.08465438,0.00011999,2]
[361748762,1747755038073,-500.0,0.00011999,2]
[361748765,1747755038083,-500.0,0.00011999,2]
[361748767,1747755038094,-500.0,0.00011999,2]
[361748769,1747755038104,-256.01820905,0.00011999,2]
[361748771,1747755038117,-243.98179095,0.00011999,2]
[361748773,1747755038127,-124.63458384,0.00012,2]
[361748775,1747755038141,-12175.3581,0.00012,2]
[361748777,1747755038152,-322.45318347,0.00012,2]
[361748779,1747755038164,-275.14168066,0.00012,2]
[361748782,1747755038177,-379.45127637,0.00012,2]
[361748784,1747755038189,-1098.10415229,0.00012,2]
[361748786,1747755038201,-1301.48,0.00012,2]
[361748788,1747755038213,-20302.0,0.00012,2]
[361748794,1747755038257,-47110.00599394,0.00012,2]
[361748797,1747755038277,-30559.54121028,0.00012,2]
[361748799,1747755038290,-1012.99409114,0.00012,2]
[361748802,1747755038303,-21040.0,0.00012,2]
[361748804,1747755038315,-359504.52647616,0.00012,2]
[361748806,1747755038325,-331.06204534,0.000124,2]
[361748808,1747755038335,-200.28567244,0.000129,2]
[361748810,1747755038346,-150.0,0.00013071,2]
[361748812,1747755038359,-215.0738,0.00013362,2]
[361748814,1747755038370,-512.97,0.00013699,2]
[361748816,1747755038380,-378.44113532,0.00013699,2]
[361748818,1747755038390,-200.28567244,0.00014054,2]
[361748820,1747755038401,-3686.5002,0.00014248,2]
[361748823,1747755038414,-1000.0,0.00014364,2]
[361748825,1747755038425,-10625.5057593,0.0001438,2]
[361748827,1747755038435,-223.0315306,0.00014731,2]
[361748829,1747755038447,-250.0,0.00015,2]
[361748831,1747755038457,-151.0,0.00015047,2]
[361748833,1747755038467,-151.0,0.00015111,2]
[361748835,1747755038477,-151.0,0.00015135,2]
[361748837,1747755038487,-151.0,0.00015147,2]
[361748839,1747755038498,-250.0,0.00015198,2]
[361748841,1747755038509,-200.28567244,0.00015208,2]
[361748843,1747755038519,-331.06204533,0.0001574,2]
[361748845,1747755038529,-150.99,0.00015741,2]
[361748848,1747755038540,-250.0,0.00015818,2]
[361748850,1747755038550,-5461.326,0.00016016,2]
[361748852,1747755038559,-231.28369723,0.000161,2]
[361748854,1747755038570,-1490.88164134,0.00016139,2]
[361748856,1747755038581,-200.28567244,0.00016362,2]
[361748858,1747755038592,-300.0,0.00017,2]
[361748860,1747755038602,-239.84119403,0.00017469,2]
[361748862,1747755038612,-200.28567244,0.00017515,2]
[361748863,1747755038623,-200.28567244,0.00018669,2]
[361748864,1747755038632,-248.71531821,0.00018838,2]
[361748865,1747755038643,-350.0,0.00019,2]
[361748866,1747755038652,-331.06204533,0.00019081,2]
[361748867,1747755038663,-200.28567244,0.00019823,2]
[361748868,1747755038673,-316.09107945,0.0002,14]
[361748869,1747755038683,-512.97,0.00020187,2]
[361748870,1747755038693,-257.91778498,0.00020207,2]
[361748871,1747755038703,-200.28567244,0.00020977,4]
[361748872,1747755038713,-400.0,0.00021,2]
[361748873,1747755038722,-267.46074303,0.00021576,2]
[361748874,1747755038732,-200.28567244,0.00022131,6]
[361748875,1747755038742,-331.06204533,0.00022421,2]
[361748876,1747755038751,-277.35679052,0.00022945,2]
[361748878,1747755038761,-450.0,0.00023,2]
[361748880,1747755038771,-200.0,0.00023,2]
[361748882,1747755038782,-1605.94923808,0.000232,2]
[361748884,1747755038793,-200.28567244,0.00023285,8]
[361748886,1747755038802,-1000.0,0.0002329,2]
[361748888,1747755038812,-5000.00887175,0.00024,5]
[361748890,1747755038824,-353.76,0.00024208,2]
[361748892,1747755038835,-287.61899177,0.00024314,2]
[361748894,1747755038845,-200.28567244,0.00024438,11]
[361748896,1747755038855,-238.54,0.00024792,2]
[361748898,1747755038866,-165.67197737,0.00024799,2]
[361748900,1747755038877,-642.14648668,0.00024799,2]
[361748903,1747755038887,-235.2168759,0.00024799,2]
[361748905,1747755038897,-72873.48247722,0.000248,3]
[361748907,1747755038910,-2996.00004,0.000248,3]
[361749045,1747755040144,-22348.82259975,0.000248,3]
[361749047,1747755040157,-8591.77846832,0.000248,3]
[361749053,1747755040203,-12449.43674443,0.000248,3]
[361749081,1747755040481,-9610.77097828,0.000248,3]
[361749083,1747755040492,-151.0,0.0002489,7]
[361749085,1747755040502,-500.0,0.00025,2]
[361749087,1747755040513,-1882.94200983,0.00025,7]
[361749089,1747755040524,-7706.91101187,0.00025,2]
[361749091,1747755040537,-2339.10087363,0.00025,2]
[361749107,1747755040687,-1981.9999998,0.00025,2]
[361749360,1747755043269,-1500.45,0.00025,2]
[361749362,1747755043281,-256.56503525,0.00025,2]
[361749372,1747755043377,-2000.0,0.00025,2]
[361749397,1747755043548,-4214.97307845,0.00025,2]
[361749400,1747755043559,-200.28567244,0.00025592,13]
[361749403,1747755043569,-298.26089446,0.00025683,2]
[361749405,1747755043579,-331.06204533,0.00025761,2]
[361749407,1747755043588,-250.0,0.00025994,2]
[361749409,1747755043598,-1000.0,0.00026062,2]
[361749411,1747755043608,-150.0,0.00026067,7]
[361749413,1747755043617,-1000.0,0.00026201,2]
[361749415,1747755043628,-576.25,0.00026446,2]
[361749417,1747755043638,-353.76,0.00026472,2]
[361749419,1747755043648,-200.0,0.00026534,2]
[361749421,1747755043657,-512.97,0.00026676,2]
[361749423,1747755043667,-200.28567244,0.00026746,15]
[361749425,1747755043676,-271.07,0.00026757,2]
[361749427,1747755043686,-550.0,0.00027,2]
[361749429,1747755043695,-309.29654756,0.00027052,2]
[361749431,1747755043705,-171.27,0.00027397,80]
[361749433,1747755043715,-185.21,0.00027406,2]
[361749435,1747755043724,-505.059448,0.0002755,120]
[361749437,1747755043735,-200.28567244,0.000279,18]
[361749439,1747755043745,-1006.197,0.00028066,18]
[361749441,1747755043754,-320.74051982,0.00028421,2]
[361749443,1747755043764,-305.14,0.00028653,30]
[361749445,1747755043773,-500.0,0.00028711,120]
[361749447,1747755043783,-353.76,0.00028736,2]
[361749449,1747755043792,-600.0,0.00029,2]
[361749451,1747755043802,-151.8,0.00029,2]
[361749454,1747755043811,-200.28567244,0.00029054,20]
[361749457,1747755043822,-331.06204533,0.00029102,15]
[361749460,1747755043832,-1000.0,0.00029113,2]
[361749462,1747755043841,-233.72089216,0.000293,2]
[361749464,1747755043851,-332.60791905,0.0002979,2]
[361749466,1747755043861,-32217.5728271,0.00029828,3]
[361749468,1747755043870,-1459.76466868,0.00029837,2]
[361749470,1747755043880,-23900.0,0.00029838,2]
[361749472,1747755043889,-500.0,0.00029871,120]
[361749474,1747755043898,-200.28567244,0.00030208,22]
[361749476,1747755043908,-4331.99442967,0.00030583,3]
[361749478,1747755043917,-2000.0,0.00030593,120]
[361749480,1747755043927,-500.0,0.00030593,120]
[361749482,1747755043936,-171.27,0.00030822,80]
[361749484,1747755043945,-353.76,0.00031,2]
[361749486,1747755043955,-650.0,0.00031,2]
[361749488,1747755043964,-500.0,0.00031032,120]
[361749490,1747755043973,-344.91441206,0.00031159,2]
[361749492,1747755043983,-200.28567244,0.00031362,24]
[361749494,1747755043992,-501.80766926,0.00031581,7]
[361749496,1747755044002,-500.0,0.00031666,7]
[361749498,1747755044011,-1076.833654,0.00032009,4]
[361749500,1747755044021,-1000.0,0.00032024,2]
[361749502,1747755044031,-500.0,0.00032193,120]
[361749504,1747755044040,-2000.0,0.00032193,120]
[361749506,1747755044050,-500.0,0.00032193,120]
[361749508,1747755044060,-443.20794531,0.00032312,5]
[361749510,1747755044070,-4331.99442967,0.00032402,3]
[361749512,1747755044079,-416.6823751,0.00032412,90]
[361749514,1747755044088,-200.28567244,0.00032515,27]
[361749516,1747755044097,-357.6762453,0.00032528,2]
[361749518,1747755044107,-500.0,0.00032696,7]
[361749520,1747755044117,-32217.5728271,0.0003299,3]
[361749522,1747755044128,-5517.67741259,0.0003299,3]
[361749525,1747755044141,-1594.149988,0.0003299,3]
[361749527,1747755044153,-4219.1886717,0.0003299,3]
[361749709,1747755046045,-2172.91492049,0.0003299,3]
[361749711,1747755046058,-1205.09999248,0.0003299,3]
[361749714,1747755046069,-5229.0,0.0003299,3]
[361749718,1747755046099,-360.02,0.0003299,3]
[361749720,1747755046111,-1361.92116304,0.0003299,3]
[361749722,1747755046122,-500.0,0.00033,45]
[361749724,1747755046132,-700.0,0.00033,2]
[361749726,1747755046142,-155.24196156,0.00033,7]
[361749732,1747755046213,-371.75803844,0.00033,7]
[361749734,1747755046223,-792.61716399,0.00033,2]
[361749736,1747755046235,-3504.68180753,0.00033,2]
[361749738,1747755046246,-738.30845914,0.00033,2]
[361749739,1747755046257,-418.92,0.00033,2]
[361749741,1747755046269,-524.7295493,0.00033,2]
[361749744,1747755046299,-3360.64211961,0.00033,2]
[361749747,1747755046314,-14127.69200808,0.00033,2]
[361750743,1747755411130,2600.0,0.00027,120]
[361750750,1747755800294,-282.843849,0.00011812,2]
[361750751,1747755800323,-300.0,0.00011872,2]
[361750752,1747755800351,-500.0,0.00011873,2]
[361750753,1747755800378,-1200.0,0.00011899,2]
[361750754,1747755800405,-300.0,0.00011899,2]
[361750755,1747755800432,-23959.9628,0.000119,2]
[361750756,1747755800459,-2586.0271,0.000119,2]
[361750757,1747755800487,-19941.1714,0.000119,2]
[361750758,1747755800511,-929.994851,0.000119,2]
[361750760,1747756044161,624.2234,0.00027397,120]
[361750771,1747756232241,-70.005149,0.000119,2]
[361750772,1747756232254,-250.0,0.00013024,2]
[361750773,1747756232265,-250.0,0.00013089,2]
[361750774,1747756232276,-200.0,0.00013089,2]
[361750775,1747756232286,-436.02,0.00013699,2]
[361750776,1747756232297,-250.0,0.00015,2]
[361750777,1747756232308,-300.0,0.00017,2]
[361750778,1747756232318,-303.99765801,0.0001855,2]
[361750779,1747756232329,-350.0,0.00019,2]
[361750780,1747756232340,-436.02,0.00020187,2]
[361750781,1747756232351,-400.0,0.00021,2]
[361750782,1747756232361,-450.0,0.00023,2]
[361750783,1747756232371,-375.13987422,0.00025,2]
[361750784,1747756232388,-124.86012578,0.00025,2]
[361750785,1747756232398,-436.02,0.00026676,2]
[361750786,1747756232408,-550.0,0.00027,2]
[361750787,1747756232418,-151.0,0.0002782,2]
[361750788,1747756232428,-151.0,0.00027884,2]
[361750789,1747756232439,-151.0,0.00027904,2]
[361750790,1747756232450,-151.0,0.00027906,2]
[361750791,1747756232460,-151.8,0.00029,2]
[361750792,1747756232470,-600.0,0.00029,2]
[361750793,1747756232481,-273.0,0.00029018,2]
[361750794,1747756232491,-321.37,0.00029019,2]
[361750795,1747756232504,-300.0,0.00029272,2]
[361750796,1747756232515,-500.0,0.00029273,5]
[361750797,1747756232525,-500.0,0.00029273,5]
[361750798,1747756232536,-500.0,0.00029273,5]
[361750799,1747756232547,-500.0,0.00029273,5]
[361750800,1747756232557,-500.0,0.00029273,5]
[361750801,1747756232568,-500.0,0.00029273,2]
[361750802,1747756232579,-500.0,0.00029273,5]
[361750803,1747756232591,-500.0,0.00029273,5]
[361750804,1747756232602,-348.14329467,0.00029273,5]
[361750805,1747756232613,-500.0,0.00029273,5]
[361750806,1747756232624,-690.49734797,0.000293,22]
[361750807,1747756232637,-114.46065203,0.000293,22]
[361750809,1747756232648,-500.0,0.000293,2]
[361750811,1747756232659,-500.0,0.000293,2]
[361750813,1747756232669,-500.0,0.000293,2]
[361750816,1747756232679,-933.0,0.000293,2]
[361750820,1747756232690,-500.0,0.000293,2]
[361750823,1747756232700,-500.0,0.000293,2]
[361750826,1747756232710,-500.0,0.000293,2]
[361750829,1747756232720,-500.0,0.000293,2]
[361750833,1747756232730,-500.0,0.000293,2]
[361750836,1747756232740,-500.0,0.000293,2]
[361750839,1747756232756,-500.0,0.000293,2]
[361750842,1747756232769,-500.0,0.000293,2]
[361750845,1747756232779,-500.0,0.000293,2]
[361750848,1747756232790,-267.28199511,0.000293,2]
[361750851,1747756232803,-232.71800489,0.000293,2]
[361750854,1747756232813,-500.0,0.000293,2]
[361750856,1747756232824,-500.0,0.000293,2]
[361750860,1747756232837,-263.76189794,0.000293,2]
[361750863,1747756232850,-236.23810206,0.000293,2]
[361750866,1747756232859,-263.76189794,0.000293,2]
[361750871,1747756232876,-236.23810206,0.000293,2]
[361750873,1747756232886,-500.0,0.000293,2]
[361750875,1747756232896,-131.24116068,0.000293,2]
[361750877,1747756232908,-368.75883932,0.000293,2]
[361750879,1747756232918,-500.0,0.000293,2]
[361750881,1747756232929,-500.0,0.000293,2]
[361750885,1747756232939,-93.99859951,0.000293,2]
[361751218,1747756239189,-406.00140049,0.000293,2]
[361751219,1747756239200,-500.0,0.000293,2]
[361751220,1747756239210,-500.0,0.000293,2]
[361751221,1747756239220,-500.0,0.000293,2]
[361751222,1747756239229,-4.23348292,0.000293,2]
[361751223,1747756239241,-495.76651708,0.000293,2]
[361751224,1747756239251,-500.0,0.000293,2]
[361751225,1747756239262,-500.0,0.000293,2]
[361751226,1747756239272,-500.0,0.000293,2]
[361751227,1747756239282,-500.0,0.000293,2]
[361751228,1747756239293,-500.0,0.000293,2]
[361751229,1747756239306,-500.0,0.000293,2]
[361751230,1747756239316,-28.04148292,0.000293,2]
[361751231,1747756239329,-471.95851708,0.000293,2]
[361751232,1747756239339,-500.0,0.000293,2]
[361751233,1747756239349,-500.0,0.000293,2]
[361751234,1747756239359,-500.0,0.000293,2]
[361751235,1747756239369,-500.0,0.000293,2]
[361751236,1747756239379,-500.0,0.000293,2]
[361751237,1747756239389,-500.0,0.000293,2]
[361751238,1747756239400,-500.0,0.000293,2]
[361751239,1747756239410,-500.0,0.000293,2]
[361751240,1747756239420,-500.0,0.000293,2]
[361751241,1747756239430,-500.0,0.000293,2]
[361751242,1747756239440,-500.0,0.000293,2]
[361751243,1747756239450,-500.0,0.000293,2]
[361751244,1747756239460,-500.0,0.000293,2]
[361751245,1747756239471,-500.0,0.000293,2]
[361751246,1747756239481,-500.0,0.000293,2]
[361751247,1747756239491,-500.0,0.000293,2]
[361751248,1747756239501,-500.0,0.000293,2]
[361751249,1747756239512,-500.0,0.000293,2]
[361751250,1747756239522,-137.01888415,0.000293,2]
[361751251,1747756239534,-362.98111585,0.000293,2]
[361751252,1747756239544,-500.0,0.000293,2]
[361751253,1747756239554,-500.0,0.000293,2]
[361751254,1747756239564,-500.0,0.000293,2]
[361751255,1747756239574,-500.0,0.000293,2]
[361751256,1747756239583,-500.0,0.000293,2]
[361751257,1747756239593,-500.0,0.000293,2]
[361751258,1747756239603,-500.0,0.000293,2]
[361751259,1747756239613,-500.0,0.000293,2]
[361751260,1747756239624,-690.0,0.000293,2]
[361751261,1747756239633,-500.0,0.000293,2]
[361751262,1747756239642,-500.0,0.000293,2]
[361751263,1747756239653,-500.0,0.000293,2]
[361751264,1747756239662,-500.0,0.000293,2]
[361751265,1747756239674,-500.0,0.000293,2]
[361751266,1747756239687,-500.0,0.000293,2]
[361751267,1747756239698,-500.0,0.000293,2]
[361751268,1747756239708,-500.0,0.000293,2]
[361751269,1747756239717,-500.0,0.000293,2]
[361751270,1747756239727,-500.0,0.000293,2]
[361751271,1747756239737,-500.0,0.000293,2]
[361751272,1747756239748,-500.0,0.000293,2]
[361751273,1747756239763,-500.0,0.000293,2]
[361751274,1747756239774,-500.0,0.000293,2]
[361751275,1747756239784,-500.0,0.000293,2]
[361751276,1747756239795,-500.0,0.000293,2]
[361751277,1747756239805,-500.0,0.000293,2]
[361751278,1747756239815,-500.0,0.000293,2]
[361751279,1747756239827,-500.0,0.000293,2]
[361751280,1747756239838,-500.0,0.000293,2]
[361751281,1747756239848,-500.0,0.000293,2]
[361751282,1747756239859,-500.0,0.000293,2]
[361751283,1747756239870,-500.0,0.000293,2]
[361751284,1747756239880,-500.0,0.000293,2]
[361751285,1747756239890,-500.0,0.000293,2]
[361751286,1747756239901,-500.0,0.000293,2]
[361751287,1747756239912,-500.0,0.000293,2]
[361751288,1747756239922,-500.0,0.000293,2]
[361751289,1747756239931,-500.0,0.000293,2]
[361751290,1747756239941,-500.0,0.000293,2]
[361751291,1747756239953,-500.0,0.000293,2]
[361751292,1747756239963,-500.0,0.000293,2]
[361751293,1747756239974,-500.0,0.000293,2]
[361751294,1747756239986,-500.0,0.000293,2]
[361751295,1747756239996,-500.0,0.000293,2]
[361751296,1747756240006,-500.0,0.000293,2]
[361751297,1747756240016,-500.0,0.000293,2]
[361751298,1747756240026,-500.0,0.000293,2]
[361751299,1747756240037,-500.0,0.000293,2]
[361751300,1747756240046,-500.0,0.000293,2]
[361751301,1747756240056,-500.0,0.000293,2]
[361751302,1747756240066,-500.0,0.000293,2]
[361751303,1747756240075,-500.0,0.000293,2]
[361751304,1747756240085,-500.0,0.000293,2]
[361751306,1747756240095,-500.0,0.000293,2]
[361751309,1747756240104,-500.0,0.000293,2]
[361751312,1747756240114,-500.0,0.000293,2]
[361751314,1747756240123,-500.0,0.000293,2]
[361751316,1747756240133,-500.0,0.000293,2]
[361751318,1747756240143,-500.0,0.000293,2]
[361751320,1747756240152,-500.0,0.000293,2]
[361751322,1747756240163,-500.0,0.000293,2]
[361751324,1747756240172,-500.0,0.000293,2]
[361751326,1747756240182,-500.0,0.000293,2]
[361751328,1747756240192,-500.0,0.000293,2]
[361751330,1747756240202,-500.0,0.000293,2]
[361751332,1747756240213,-500.0,0.000293,2]
[361751334,1747756240222,-500.0,0.000293,2]
[361751335,1747756240232,-500.0,0.000293,2]
[361751336,1747756240242,-500.0,0.000293,2]
[361751337,1747756240251,-500.0,0.000293,2]
[361751338,1747756240262,-500.0,0.000293,2]
[361751339,1747756240272,-500.0,0.000293,2]
[361751340,1747756240282,-500.0,0.000293,2]
[361751341,1747756240292,-500.0,0.000293,2]
[361751342,1747756240302,-500.0,0.000293,2]
[361751343,1747756240312,-500.0,0.000293,2]
[361751344,1747756240321,-500.0,0.000293,2]
[361751345,1747756240331,-500.0,0.000293,2]
[361751346,1747756240341,-500.0,0.000293,2]
[361751347,1747756240351,-500.0,0.000293,2]
[361751348,1747756240361,-500.0,0.000293,2]
[361751349,1747756240371,-500.0,0.000293,2]
[361751350,1747756240381,-500.0,0.000293,2]
[361751351,1747756240391,-500.0,0.000293,2]
[361751352,1747756240400,-500.0,0.000293,2]
[361751353,1747756240410,-500.0,0.000293,2]
[361751354,1747756240420,-500.0,0.000293,2]
[361751355,1747756240430,-500.0,0.000293,2]
[361751356,1747756240439,-500.0,0.000293,2]
[361751357,1747756240449,-500.0,0.000293,2]
[361751358,1747756240459,-500.0,0.000293,2]
[361751359,1747756240468,-500.0,0.000293,2]
[361751360,1747756240479,-500.0,0.000293,2]
[361751361,1747756240489,-500.0,0.000293,2]
[361751362,1747756240499,-500.0,0.000293,2]
[361751363,1747756240509,-500.0,0.000293,2]
[361751364,1747756240520,-500.0,0.000293,2]
[361751365,1747756240530,-500.0,0.000293,2]
[361751366,1747756240540,-500.0,0.000293,2]
[361751367,1747756240550,-500.0,0.000293,2]
[361751368,1747756240560,-500.0,0.000293,2]
[361751369,1747756240570,-500.0,0.000293,2]
[361751370,1747756240581,-500.0,0.000293,2]
[361751371,1747756240591,-500.0,0.000293,2]
[361751372,1747756240601,-500.0,0.000293,2]
[361751373,1747756240610,-500.0,0.000293,2]
[361751374,1747756240620,-500.0,0.000293,2]
[361751375,1747756240630,-500.0,0.000293,2]
[361751376,1747756240641,-500.0,0.000293,2]
[361751377,1747756240650,-500.0,0.000293,2]
[361751378,1747756240660,-500.0,0.000293,2]
[361751379,1747756240671,-500.0,0.000293,2]
[361751380,1747756240681,-639.0,0.000293,2]
[361751381,1747756240690,-500.0,0.000293,2]
[361751382,1747756240700,-688.0,0.000293,2]
[361751383,1747756240710,-500.0,0.000293,2]
[361751384,1747756240719,-500.0,0.000293,2]
[361751395,1747756241216,-500.0,0.000293,2]
[361751396,1747756241242,-500.0,0.000293,2]
[361751397,1747756241254,-500.0,0.000293,2]
[361751398,1747756241265,-500.0,0.000293,2]
[361751399,1747756241275,-500.0,0.000293,2]
[361751400,1747756241285,-500.0,0.000293,2]
[361751401,1747756241295,-500.0,0.000293,2]
[361751402,1747756241305,-500.0,0.000293,2]
[361751403,1747756241316,-500.0,0.000293,2]
[361751404,1747756241326,-500.0,0.000293,2]
[361751405,1747756241337,-500.0,0.000293,2]
[361751406,1747756241347,-500.0,0.000293,2]
[361751407,1747756241357,-500.0,0.000293,2]
[361751408,1747756241367,-500.0,0.000293,2]
[361751409,1747756241377,-500.0,0.000293,2]
[361751410,1747756241387,-500.0,0.000293,2]
[361751411,1747756241397,-500.0,0.000293,2]
[361751412,1747756241407,-500.0,0.000293,2]
[361751413,1747756241417,-500.0,0.000293,2]
[361751414,1747756241427,-500.0,0.000293,2]
[361751415,1747756241437,-500.0,0.000293,2]
[361751416,1747756241447,-500.0,0.000293,2]
[361751417,1747756241458,-500.0,0.000293,2]
[361751418,1747756241469,-500.0,0.000293,2]
[361751419,1747756241480,-500.0,0.000293,2]
[361751420,1747756241490,-500.0,0.000293,2]
[361751421,1747756241500,-500.0,0.000293,2]
[361751422,1747756241510,-500.0,0.000293,2]
[361751423,1747756241520,-500.0,0.000293,2]
[361751424,1747756241531,-500.0,0.000293,2]
[361751425,1747756241541,-500.0,0.000293,2]
[361751426,1747756241551,-500.0,0.000293,2]
[361751427,1747756241561,-500.0,0.000293,2]
[361751428,1747756241570,-500.0,0.000293,2]
[361751429,1747756241580,-500.0,0.000293,2]
[361751430,1747756241590,-500.0,0.000293,2]
[361751431,1747756241600,-500.0,0.000293,2]
[361751432,1747756241611,-500.0,0.000293,2]
[361751433,1747756241621,-500.0,0.000293,2]
[361751434,1747756241632,-500.0,0.000293,2]
[361751435,1747756241642,-500.0,0.000293,2]
[361751436,1747756241652,-500.0,0.000293,2]
[361751437,1747756241662,-500.0,0.000293,2]
[361751438,1747756241672,-742.0,0.000293,2]
[361751439,1747756241682,-500.0,0.000293,2]
[361751440,1747756241692,-500.0,0.000293,2]
[361751441,1747756241701,-500.0,0.000293,2]
[361751442,1747756241712,-500.0,0.000293,2]
[361751443,1747756241723,-500.0,0.000293,2]
[361751444,1747756241733,-500.0,0.000293,2]
[361751445,1747756241743,-500.0,0.000293,2]
[361751446,1747756241754,-866.0,0.000293,2]
[361751447,1747756241767,-294.88,0.00029533,2]
[361751448,1747756241777,-3941.86,0.00029576,2]
[361751449,1747756241788,-500.0,0.00029821,5]
[361751450,1747756241798,-500.0,0.00029821,5]
[361751451,1747756241811,-520.72472321,0.00029821,5]
[361751452,1747756241821,-500.0,0.00029821,5]
[361751453,1747756241831,-500.0,0.00029821,2]
[361751454,1747756241843,-505.00798943,0.00029821,5]
[361751455,1747756241853,-500.0,0.00029821,5]
[361751456,1747756241863,-1000.0,0.00029821,5]
[361751457,1747756241873,-22.81592077,0.000299,21]
[361751458,1747756241888,-191.04144164,0.000299,21]
[361751459,1747756241899,-203.0,0.00030192,2]
[361751460,1747756241908,-184.28,0.00030453,2]
[361751461,1747756241918,-267.36338877,0.00030606,2]
[361751462,1747756241943,-284.03661123,0.00030606,2]
[361751463,1747756241953,-151.0,0.00030752,2]
[361751464,1747756241964,-151.0,0.00030752,2]
[361751465,1747756241984,-151.0,0.00030752,2]
[361751466,1747756241995,-151.0,0.00030752,2]
[361751467,1747756242005,-174.22099951,0.00030752,2]
[361751468,1747756242016,-480.2,0.0003077,2]
[361751469,1747756242026,-321.77111661,0.0003077,2]
[361751470,1747756242043,-1918.76888339,0.0003077,2]
[361751471,1747756242053,-520.9783197,0.00030939,2]
[361751472,1747756242067,-479.0216803,0.00030939,2]
[361751473,1747756242076,-684.34696966,0.00031,2]
[361751474,1747756242087,-650.0,0.00031,2]